bitfinex-derivatives/quotes_ETHF0:USTF0_20241230
["timestamp","ask_amount","ask_price","bid_price","bid_amount"]
[1735545986094,3.2078,3423.5,3423.3,2.05522]
[1735545986288,3.2078,3423.5,3423.3,1.47262]
[1735545987385,3.2078,3423.5,3423.3,1.18]
[1735545987591,3.2078,3423.5,3423.4,0.29261]
[1735545988189,3.2078,3423.5,3423.0,1.1748]
[1735545988391,0.29262,3423.4,3423.1,0.29263]
[1735545988697,3.2078,3423.2,3423.0,0.6062]
[1735545988894,3.50043,3423.2,3423.0,0.6062]
[1735545989082,3.2078,3423.2,3423.0,0.6062]
[1735545989688,3.2078,3423.2,3423.0,0.89884]
[1735545991486,3.2078,3423.2,3423.0,0.6062]
[1735545991796,1.1777,3423.6,3423.5,0.29261]
[1735545991797,3.2078,3423.6,3423.5,0.29261]
[1735545992598,2.93903343,3423.6,3423.5,1.42261]
[1735546000902,1.67704177,3423.6,3423.5,1.42261]
[1735546008010,1.67704177,3423.6,3423.5,2.02231]
[1735546012007,1.67704177,3423.6,3423.5,1.46561]
[1735546012710,1.67704177,3423.6,3423.5,0.29261]
[1735546013206,1.96964177,3423.6,3423.4,0.29261]
[1735546013512,1.165,3423.5,3423.4,0.29261]
[1735546013806,1.165,3423.5,3423.1,3.50550113]
[1735546014001,3.2078,3423.2,3423.1,0.29264]
[1735546016505,3.2078,3423.2,3423.1,2.62514113]
[1735546016914,3.2078,3423.2,3423.1,2.24004555]
[1735546017109,3.2078,3423.2,3423.1,2.53268555]
[1735546019311,6.6526242,3423.2,3423.1,2.53268555]
[1735546020316,8.23735584,3423.2,3423.1,2.53268555]
[1735546020615,0.29265,3423.0,3422.7,0.29267]
[1735546020813,3.2078,3422.8,3422.7,0.29267]
[1735546021217,3.2078,3422.8,3422.6,0.29268]
[1735546021616,3.2078,3422.8,3422.7,0.29267]
[1735546021617,6.65293629,3422.8,3422.7,0.29267]
[1735546022812,8.23735584,3422.8,3422.7,0.29267]
[1735546024117,3.6469171,3422.8,3422.7,0.29267]
[1735546025317,7.09342152,3422.8,3422.7,0.29267]
[1735546027118,7.09342152,3422.8,3422.5,2.33250113]
[1735546027313,0.29268,3422.7,3422.2,2.33250113]
[1735546027525,0.29269,3422.7,3422.4,0.29271]
[1735546028013,0.2927,3422.6,3422.4,0.29271]
[1735546028219,0.2927,3422.6,3422.2,2.33250113]
[1735546028520,3.2078,3422.3,3422.2,2.62523113]
[1735546030319,3.7909,3422.3,3422.2,2.62523113]
[1735546030825,4.3802,3422.3,3422.2,2.62523113]
[1735546031323,3.7909,3422.3,3422.2,2.62523113]
[1735546031519,4.59043874,3422.7,3422.2,2.33250113]
[1735546031829,4.59043874,3422.7,3422.6,2.62520113]
[1735546032023,4.25158019,3423.1,3422.6,3.49850113]
[1735546032217,4.25158019,3423.1,3423.0,2.62517113]
[1735546033225,0.43908899,3423.4,3423.0,2.33250113]
[1735546033424,1.00768899,3423.4,3423.3,2.62514113]
[1735546034424,0.5686,3423.4,3423.3,2.62514113]
[1735546034825,0.5831,3423.5,3423.3,2.33250113]
[1735546035128,3.2078,3423.7,3423.4,1.166]
[1735546035432,5.74734599,3424.0,3423.4,1.166]
[1735546035433,5.74734599,3424.0,3423.9,0.29259]
[1735546035622,5.74734599,3424.0,3423.9,2.62509113]
[1735546036230,0.43901367,3424.0,3423.9,2.62509113]
[1735546039018,0.43901367,3424.0,3423.8,0.29259]
[1735546039225,0.43901367,3424.0,3423.6,2.62511113]
[1735546039428,3.2078,3423.7,3423.6,2.62511113]
[1735546040526,3.64681367,3423.7,3423.6,2.62511113]
[1735546041638,5.50241967,3423.7,3423.6,2.62511113]
[1735546042419,5.50241967,3423.7,3423.6,0.29261]
[1735546043026,3.7925,3423.7,3423.6,0.29261]
[1735546043930,3.2078,3423.7,3423.6,2.62511113]
[1735546044131,3.64685866,3423.7,3423.6,2.62511113]
[1735546044927,8.95514599,3424.1,3424.0,0.29258]
[1735546045232,8.95514599,3424.1,3424.0,2.62508113]
[1735546046531,3.2078,3424.1,3424.0,2.62508113]
[1735546047234,4.3282,3424.1,3423.2,1.166]
[1735546047425,3.2078,3423.7,3423.5,2.62511113]
[1735546047626,0.566,3423.6,3423.5,2.62511113]
[1735546048925,0.566,3423.6,3423.5,2.62512113]
[1735546050122,0.566,3423.6,3423.2,2.33250113]
[1735546050327,1.12,3423.5,3423.4,0.29263]
[1735546051736,0.566,3423.6,3423.5,0.29262]
[1735546051942,0.566,3423.6,3423.5,2.62512113]
[1735546053136,3.2078,3423.7,3423.6,0.29261]
[1735546056841,5.50327309,3423.7,3423.6,0.29261]
[1735546059134,3.2078,3423.7,3423.6,0.29261]
[1735546061333,3.2078,3423.7,3423.2,2.33250113]
[1735546061528,0.29264,3423.5,3422.9,5.54030113]
[1735546061745,3.2078,3423.1,3423.0,0.29268]
[1735546062441,5.50344115,3423.1,3423.0,0.29268]
[1735546063837,3.2078,3423.1,3423.0,0.29268]
[1735546066240,5.50314948,3423.1,3423.0,0.29268]
[1735546068236,2.29534948,3423.1,3423.0,3.50048]
[1735546068748,5.2115823,3423.4,3423.3,0.29265]
[1735546069943,1.05937858,3423.4,3423.3,0.29265]
[1735546074038,1.05937858,3423.4,3422.9,2.33250113]
[1735546074343,3.2078,3423.1,3423.0,0.29268]
[1735546075241,3.2078,3423.1,3422.9,2.33250113]
[1735546075441,0.5894,3423.0,3422.9,0.29268]
[1735546076149,0.5894,3423.0,3422.8,0.29269]
[1735546076349,0.5894,3423.0,3422.3,2.33250113]
[1735546076350,0.89339,3422.9,3422.3,2.33250113]
[1735546076540,0.6339,3422.8,3422.3,2.33250113]
[1735546076747,0.29271,3422.7,3422.4,0.29272]
[1735546077348,0.29271,3422.7,3422.4,0.29273]
[1735546077751,5.0350069,3422.6,3422.4,0.29273]
[1735546078450,5.0350069,3422.6,3422.2,3.2078]
[1735546078652,5.0350069,3422.6,3422.5,0.29272]
[1735546078953,8.2428069,3422.6,3422.5,0.29272]
[1735546080449,8.2428069,3422.6,3422.3,2.62523113]
[1735546080648,13.9745969,3422.6,3421.6,0.29279]
[1735546080950,13.9745969,3422.6,3421.4,9.18347839]
[1735546080951,3.5006,3421.7,3421.4,9.18347839]
[1735546081248,1.2159,3421.6,3421.3,9.18347839]
[1735546081642,1.2159,3421.6,3421.5,0.29281]
[1735546081847,1.2159,3421.6,3421.5,2.62531113]
[1735546082145,3.2078,3421.7,3421.5,2.33250113]
[1735546082352,3.2078,3422.1,3422.0,0.29276]
[1735546082552,3.2078,3422.1,3422.0,2.62526113]
[1735546083752,3.2078,3422.1,3422.0,0.29276]
[1735546084256,3.64705213,3422.1,3422.0,2.62526113]
[1735546084457,0.43925213,3422.1,3422.0,2.62526113]
[1735546085358,2.29204543,3422.1,3422.0,2.62526113]
[1735546089364,2.91444543,3422.4,3422.3,0.29274]
[1735546091267,0.6224,3422.4,3422.3,0.29274]
[1735546092268,4.49914464,3422.4,3422.3,2.62524113]
[1735546092464,3.87674464,3422.4,3422.3,2.62524113]
[1735546093272,2.29217885,3422.4,3422.3,2.62524113]
[1735546099272,3.2078,3422.5,3422.4,0.29273]
[1735546100077,2.29217885,3422.6,3422.5,0.29272]
[1735546100278,2.29217885,3422.6,3422.4,3.2078]
[1735546100279,2.29217885,3422.7,3422.4,3.2078]
[1735546100474,2.29217885,3422.7,3422.6,2.62521113]
[1735546100676,0.03370885,3422.7,3422.6,3.80421113]
[1735546100983,3.43751324,3422.8,3422.7,0.2927]
[1735546101277,2.92568753,3422.8,3422.7,0.2927]
[1735546101478,4.58559964,3423.4,3423.3,0.29265]
[1735546101776,2.97589964,3423.4,3423.3,5.83295113]
[1735546102278,0.6383,3423.7,3423.3,5.54030113]
[1735546102477,0.6006,3423.9,3423.6,2.33250113]
[1735546102670,0.6006,3423.9,3423.8,0.29261]
[1735546103875,1.03962265,3423.9,3423.6,2.33250113]
[1735546104077,1.03962265,3423.9,3423.8,0.29261]
[1735546109782,4.24742265,3423.9,3423.8,0.29261]
[1735546113690,3.64682265,3423.9,3423.8,0.29261]
[1735546114695,3.2078,3423.9,3423.8,0.29261]
[1735546120201,3.2078,3424.4,3424.3,0.29257]
[1735546120497,3.2078,3424.4,3424.3,2.62507113]
[1735546124899,1.2089,3424.6,3424.5,0.29255]
[1735546126901,0.5893,3425.0,3424.9,0.29251]
[1735546127297,1.08838696,3425.2,3425.1,0.2925]
[1735546127492,1.69598696,3425.2,3425.1,0.2925]
[1735546127799,1.2412,3425.2,3425.1,0.2925]
[1735546128199,2.31718696,3425.2,3425.1,0.2925]
[1735546130298,2.31718696,3425.2,3424.2,0.73144]
[1735546130299,1.8624,3425.2,3424.2,0.73144]
[1735546130505,0.45522358,3424.7,3424.6,0.29254]
[1735546130700,0.29253,3424.8,3424.6,0.29254]
[1735546130907,3.2078,3424.9,3424.1,3.2078]
[1735546131202,3.2078,3424.9,3423.3,0.2928]
[1735546131203,0.74785158,3424.2,3423.9,0.2926]
[1735546131500,1.0670081,3424.1,3423.7,2.33250113]
[1735546131808,1.0670081,3424.1,3423.7,2.62512113]
[1735546131809,3.2078,3423.8,3423.7,2.62512113]
[1735546134203,3.797,3423.8,3423.7,2.62512113]
[1735546138208,4.25253362,3423.8,3423.7,2.62512113]
[1735546138406,4.25253362,3423.8,3423.6,2.33250113]
[1735546138708,4.25253362,3423.8,3423.7,0.29262]
[1735546140700,3.797,3423.8,3423.7,0.29262]
[1735546140904,4.25256392,3423.8,3423.6,2.62512113]
[1735546141101,4.25256392,3423.8,3423.6,0.29262]
[1735546141307,4.25257785,3423.8,3423.4,0.29264]
[1735546141600,4.25257785,3423.8,3423.6,0.29262]
[1735546141805,4.25257785,3423.8,3423.7,0.29262]
[1735546142806,3.797,3423.8,3423.7,0.29262]
[1735546143215,4.25257628,3423.8,3423.7,0.29262]
[1735546143605,4.69164431,3423.8,3423.7,0.29262]
[1735546144813,9.2649577,3423.8,3423.3,3.50550113]
[1735546145614,9.2649577,3423.8,3423.7,0.29262]
[1735546146515,4.69164431,3423.8,3423.7,0.29262]
[1735546148316,10.53698331,3423.8,3423.7,0.29262]
[1735546149113,10.08140703,3423.8,3423.7,0.29262]
[1735546149313,10.08140703,3423.8,3423.5,0.29263]
[1735546149508,0.45537776,3423.7,3422.7,2.33250113]
[1735546149709,10.08140703,3423.8,3422.8,1.46869]
[1735546149710,3.2078,3422.9,3422.8,1.46869]
[1735546152616,3.2078,3422.9,3422.8,0.29269]
[1735546154020,0.5906,3423.2,3423.1,0.29267]
[1735546154220,8.3827304,3423.3,3423.2,0.29266]
[1735546154620,3.2078,3423.3,3423.2,0.29266]
[1735546154818,4.5930304,3423.5,3423.1,2.33250113]
[1735546155025,0.93601705,3423.5,3423.4,2.62514113]
[1735546155320,6.8352615,3424.1,3424.0,0.29259]
[1735546155515,6.16296253,3424.1,3424.0,7.00889113]
[1735546155712,3.2078,3424.5,3424.0,6.71630113]
[1735546155914,0.45498174,3425.0,3424.4,7.87280226]
[1735546156213,3.88409998,3425.1,3425.0,0.29251]
[1735546156409,3.88409998,3425.1,3425.0,3.80101113]
[1735546156410,1.45160061,3425.1,3425.0,3.80101113]
[1735546157417,0.45498174,3425.4,3425.3,0.29248]
[1735546158323,3.2078,3425.7,3425.5,0.29246]
[1735546159023,3.2078,3425.7,3425.6,0.29245]
[1735546159818,3.2078,3425.7,3425.0,3.50850113]
[1735546160124,0.45456168,3425.4,3425.3,0.29248]
[1735546160423,3.64664832,3425.7,3425.0,3.50850113]
[1735546160721,3.64664832,3425.7,3425.5,0.29246]
[1735546161118,3.64664832,3425.7,3425.6,0.29245]
[1735546161319,3.2078,3425.7,3425.6,0.29245]
[1735546162023,3.2078,3425.7,3425.5,0.29246]
[1735546162723,3.2078,3425.7,3425.6,0.29245]
[1735546163712,3.64665207,3425.7,3425.0,3.50850113]
[1735546163917,0.45407554,3425.4,3425.1,0.2925]
[1735546164125,0.45407554,3425.5,3425.4,0.29247]
[1735546164324,3.64665207,3425.7,3425.0,3.50850113]
[1735546164519,0.4539748,3425.5,3425.4,0.29247]
[1735546164725,0.45397479,3425.5,3425.4,0.29247]
[1735546165424,3.43528929,3425.5,3425.4,0.29246]
[1735546166420,3.88926408,3425.6,3425.5,0.29244]
[1735546167622,0.45397479,3425.6,3425.5,0.29244]
[1735546168922,3.88926408,3425.7,3425.6,0.29243]
[1735546169123,3.43528929,3425.7,3425.6,0.29243]
[1735546170319,3.43528929,3425.9,3425.8,0.29241]
[1735546170621,3.43528929,3425.9,3425.8,3.80091113]
[1735546171817,7.86618929,3426.6,3425.8,3.50850113]
[1735546172020,7.86618929,3426.6,3426.0,0.29239]
[1735546172021,0.29237,3426.3,3426.0,0.29239]
[1735546172221,0.5919,3426.2,3426.0,0.29239]
[1735546172623,0.5919,3426.2,3426.1,0.29238]
[1735546172825,0.5919,3426.2,3425.8,1.176]
[1735546173026,0.5919,3426.2,3426.1,0.29238]
[1735546173530,3.7997,3426.2,3426.1,0.29238]
[1735546174023,3.2078,3426.2,3426.1,0.29238]
[1735546174230,3.43528929,3426.5,3426.4,0.29236]
[1735546174433,4.4309,3426.6,3426.1,2.33250113]
[1735546174629,4.4309,3426.6,3426.5,0.29235]
[1735546175528,4.4309,3426.6,3426.4,0.29235]
[1735546177132,4.4309,3426.6,3425.8,3.50850113]
[1735546177423,4.4309,3426.6,3426.5,0.29234]
[1735546178631,1.2231,3426.6,3426.5,0.29234]
[1735546178936,0.5872,3427.0,3426.8,0.29232]
[1735546179229,1.2139,3427.0,3426.9,0.29231]
[1735546179631,1.39667009,3427.0,3426.9,0.29231]
[1735546180129,1.39666939,3427.0,3426.9,0.29231]
[1735546180436,1.84958006,3427.0,3426.9,0.29231]
[1735546180830,1.84958006,3427.0,3426.9,0.2923]
[1735546181532,1.39666939,3427.0,3426.9,0.2923]
[1735546181728,1.39666939,3427.0,3426.8,0.29229]
[1735546181929,0.18276939,3426.9,3426.4,2.33250113]
[1735546182129,3.50011,3426.7,3426.4,0.29232]
[1735546182335,0.9284,3426.6,3426.3,0.29234]
[1735546182628,0.63608,3426.5,3426.1,2.33250113]
[1735546182834,1.26358,3426.5,3426.4,0.29233]
[1735546183134,1.26395789,3426.5,3426.4,0.29233]
[1735546183334,0.81029298,3426.5,3426.4,0.29233]
[1735546183530,1.26438159,3426.5,3426.4,0.29233]
[1735546183735,0.18279298,3426.5,3426.4,2.62483113]
[1735546184027,0.18279298,3426.5,3426.4,5.83263113]
[1735546184230,0.18279298,3426.5,3426.4,2.62483113]
[1735546184837,0.18277335,3426.5,3426.4,2.62484113]
[1735546185039,0.18277335,3426.5,3426.4,5.83264113]
[1735546185537,0.63730001,3426.5,3426.4,5.83264113]
[1735546186236,0.6275,3426.6,3426.5,0.29234]
[1735546186437,0.81027213,3426.6,3426.5,0.29234]
[1735546187733,0.18277213,3426.6,3426.5,0.29234]
[1735546187942,0.18277213,3426.6,3426.5,0.96514]
[1735546188336,0.18277213,3426.6,3426.5,0.29234]
[1735546188938,0.18277213,3426.6,3426.4,0.29234]
[1735546189139,0.18277213,3426.5,3426.4,0.29234]
[1735546189341,0.18277213,3426.5,3426.1,2.95490113]
[1735546189342,0.29235,3426.4,3426.1,2.33250113]
[1735546189644,0.45474869,3426.2,3426.1,2.62487113]
[1735546189846,0.6375433,3426.2,3426.1,2.62487113]
[1735546191641,0.45474869,3426.2,3426.1,2.62487113]
[1735546192339,0.45474869,3426.2,3426.0,0.29238]
[1735546192541,0.45497621,3426.1,3426.0,0.29238]
[1735546192740,0.74735621,3426.1,3425.9,0.29239]
[1735546192941,0.29239,3425.9,3425.8,2.33250113]
[1735546193143,0.74739882,3425.9,3425.7,0.29241]
[1735546193343,0.6612,3425.8,3425.5,5.54030113]
[1735546193549,0.45500882,3425.7,3425.2,4.14180113]
[1735546193741,3.2078,3425.4,3425.2,2.33250113]
[1735546194049,3.2078,3425.4,3425.3,0.29245]
[1735546195448,0.45500882,3425.5,3425.2,2.33250113]
[1735546195449,0.45534981,3425.5,3425.2,2.33250113]
[1735546195657,0.45534981,3425.5,3425.4,0.29244]
[1735546196049,0.45533577,3425.5,3425.4,0.29244]
[1735546196552,0.661,3425.6,3425.5,0.29243]
[1735546196947,0.661,3425.6,3425.4,0.29243]
[1735546197153,0.45542775,3425.5,3425.4,0.29243]
[1735546198452,0.661,3425.6,3425.2,2.33250113]
[1735546198652,0.661,3425.6,3425.5,0.29243]
[1735546198954,0.661,3425.6,3425.4,0.29243]
[1735546199352,0.661,3425.6,3425.2,2.33250113]
[1735546199353,0.661,3425.6,3425.5,0.29243]
[1735546199948,0.661,3425.6,3425.4,0.29243]
[1735546200152,0.95342,3425.6,3425.2,2.33250113]
[1735546200353,0.95342,3425.6,3425.3,0.29244]
[1735546200647,0.661,3425.6,3425.4,0.29243]
[1735546201857,0.45550401,3425.5,3425.3,0.29245]
[1735546202054,1.10601326,3425.4,3425.3,0.29245]
[1735546202952,1.10601326,3425.4,3425.0,1.172]
[1735546202953,0.29245,3425.3,3425.0,1.172]
[1735546203157,0.74796326,3425.3,3425.0,1.172]
[1735546203446,0.6079,3425.2,3425.0,1.172]
[1735546203646,0.6079,3425.2,3425.1,0.29246]
[1735546204053,1.06341326,3425.2,3425.1,0.29246]
[1735546204250,0.6079,3425.2,3425.1,0.29246]
[1735546205063,0.6079,3425.2,3424.9,2.51258091]
[1735546205252,0.6079,3425.2,3425.1,0.29246]
[1735546205748,0.6079,3425.2,3424.6,2.33250113]
[1735546205951,0.6079,3425.2,3424.3,2.33250113]
[1735546205952,3.2078,3424.9,3424.3,2.33250113]
[1735546206151,1.52469,3424.8,3424.5,0.29251]
[1735546206553,3.2078,3424.9,3424.6,2.33250113]
[1735546206762,3.2078,3424.9,3424.8,0.29249]
[1735546207657,3.2078,3424.9,3424.7,0.6551]
[1735546207851,3.2078,3424.9,3424.4,1.173]
[1735546208056,0.29251,3424.6,3424.3,2.33250113]
[1735546208355,0.6681,3424.5,3424.3,0.29253]
[1735546208556,1.3378,3424.5,3424.2,3.2078]
[1735546208861,0.6326,3424.8,3424.6,0.2925]
[1735546209057,2.26289,3424.8,3424.6,0.2925]
[1735546209363,2.2629,3424.8,3424.5,0.29251]
[1735546209659,2.2629,3424.8,3424.3,2.33250113]
[1735546209863,1.9704,3424.8,3424.3,2.33250113]
[1735546210163,0.2925,3424.7,3424.4,0.29252]
[1735546210364,1.9704,3424.8,3424.3,2.33250113]
[1735546210655,1.9704,3424.8,3424.5,0.29251]
[1735546211158,1.9704,3424.8,3424.7,0.2925]
[1735546211159,0.6697,3424.8,3424.7,0.2925]
[1735546211355,3.2078,3424.9,3424.8,0.29249]
[1735546212459,3.2078,3424.9,3424.6,0.2925]
[1735546212665,3.2078,3424.9,3424.6,2.33250113]
[1735546212866,3.2078,3424.9,3424.8,0.29249]
[1735546214065,3.2078,3424.9,3424.7,0.2925]
[1735546214962,3.2078,3424.9,3424.8,0.29249]
[1735546215163,3.2078,3424.9,3424.6,2.33250113]
[1735546215566,3.2078,3424.9,3424.8,0.29249]
[1735546217260,3.2078,3424.9,3424.3,2.33250113]
[1735546217455,3.2078,3424.9,3424.2,3.50034]
[1735546217654,3.2078,3424.9,3424.4,0.29252]
[1735546217863,0.2925,3424.7,3424.4,0.29252]
[1735546218362,3.2078,3424.9,3424.4,0.29252]
[1735546218573,0.29249,3424.8,3424.5,0.29251]
[1735546218866,3.2078,3424.9,3424.2,3.2078]
[1735546218867,3.2078,3424.9,3424.6,2.33250113]
[1735546219061,3.2078,3424.9,3424.8,0.29249]
[1735546219270,3.2078,3424.9,3424.6,2.33250113]
[1735546219468,3.2078,3424.9,3424.7,0.2925]
[1735546219664,3.2078,3424.9,3424.6,2.33250113]
[1735546219870,3.2078,3424.9,3424.7,0.2925]
[1735546220072,3.2078,3424.9,3424.6,2.33250113]
[1735546220271,3.2078,3424.9,3424.8,0.29249]
[1735546226168,3.95639777,3424.9,3424.7,0.2925]
[1735546226369,3.66391777,3424.9,3424.7,0.2925]
[1735546226577,3.66391777,3424.9,3424.8,0.29249]
[1735546228076,3.2078,3424.9,3424.8,0.29249]
[1735546228965,0.94458,3425.0,3424.8,0.29249]
[1735546229169,4.15238,3425.0,3424.8,0.29249]
[1735546229866,0.18286604,3424.9,3424.8,0.29249]
[1735546230875,0.47534604,3424.9,3424.5,0.29252]
[1735546231071,0.47536604,3424.8,3424.4,0.29253]
[1735546231264,0.18286604,3424.7,3424.5,0.29251]
[1735546231467,1.45026604,3424.6,3424.5,0.29251]
[1735546231669,1.2674,3424.6,3424.5,0.29251]
[1735546231865,0.1828741,3424.6,3424.5,0.29251]
[1735546232069,0.63949027,3424.6,3424.5,0.29252]
[1735546233076,0.18286742,3424.6,3424.5,0.29252]
[1735546233782,0.182874,3424.6,3424.5,0.29252]
[1735546233975,0.182874,3424.7,3424.6,0.29251]
[1735546234176,0.18287413,3424.7,3424.6,0.29251]
[1735546235478,2.47360443,3424.7,3424.6,0.29251]
[1735546237367,2.47359847,3424.7,3424.6,3.50031]
[1735546237768,2.93027967,3424.7,3424.6,3.50031]
[1735546238076,0.63954937,3424.7,3424.6,3.50031]
[1735546238977,0.18286817,3424.7,3424.6,3.50031]
[1735546240580,0.18286817,3424.7,3424.6,8.05321245]
[1735546240780,0.18285871,3424.7,3424.6,8.05321245]
[1735546241976,2.48135272,3424.7,3424.6,8.05321245]
[1735546242178,2.48135272,3424.7,3424.6,3.50031]
[1735546243881,2.93802761,3424.7,3424.6,3.64041]
[1735546244276,2.48133851,3424.7,3424.6,8.19331245]
[1735546244881,1.86520168,3424.7,3424.6,8.19331245]
[1735546245081,1.86519791,3424.7,3424.6,8.19331245]
[1735546245479,1.86519791,3424.7,3424.6,8.05321245]
[1735546245686,0.18284073,3424.7,3424.6,3.50031]
[1735546246986,0.45651811,3425.0,3424.7,0.2925]
[1735546247187,3.6181284,3424.9,3424.8,1.175]
[1735546247387,3.6181284,3424.9,3424.8,3.50750113]
[1735546248080,3.0934284,3424.9,3424.8,3.50750113]
[1735546248280,2.5068284,3424.9,3424.8,3.79999113]
[1735546248482,0.18283911,3424.9,3424.8,10.68014465]
[1735546250083,0.18284478,3424.9,3424.8,10.68014465]
[1735546250386,0.63922597,3424.9,3424.8,10.68014465]
[1735546250685,0.63925729,3424.9,3424.8,3.79999113]
[1735546252486,0.1828561,3424.9,3424.8,3.79999113]
[1735546253180,0.18285112,3424.9,3424.8,3.50750113]
[1735546253387,0.18285112,3424.9,3424.8,3.79999113]
[1735546253780,0.18285112,3424.9,3424.8,8.38614667]
[1735546256179,0.6571,3425.0,3424.8,8.09365667]
[1735546256480,0.18284948,3424.9,3424.8,8.38614667]
[1735546259388,0.18285176,3424.9,3424.8,8.38614667]
[1735546261590,0.18284503,3424.9,3424.8,8.38614667]
[1735546262493,5.19228423,3425.2,3425.1,0.29247]
[1735546262792,0.81654448,3425.2,3425.1,0.29247]
[1735546263784,1.25537344,3425.2,3425.1,0.29247]
[1735546264390,1.07252896,3425.2,3425.1,0.29247]
[1735546266186,1.07252896,3425.2,3425.1,1.31728303]
[1735546267591,5.63111319,3425.2,3425.1,1.31728303]
[1735546267993,5.63111319,3425.2,3425.1,0.29247]
[1735546268292,5.63111319,3425.2,3425.1,2.62352719]
[1735546268492,1.07252896,3425.2,3425.1,2.62352719]
[1735546269188,0.89550797,3425.2,3425.1,5.83132719]
[1735546269389,0.43882896,3425.2,3425.1,5.83132719]
[1735546269589,4.55858423,3425.4,3425.3,0.29245]
[1735546270193,5.01526324,3425.4,3425.3,0.29245]
[1735546270492,4.55858423,3425.4,3425.3,0.29245]
[1735546271194,4.55858423,3425.7,3425.6,0.29242]
[1735546271393,4.55858423,3425.7,3425.6,7.00827719]
[1735546272093,1.12136643,3425.9,3425.6,11.30201273]
[1735546272395,0.6649,3425.9,3425.8,0.29241]
[1735546272596,0.84769823,3425.9,3425.8,0.29241]
[1735546273491,1.12083188,3425.9,3425.8,0.29241]
[1735546273685,0.6649,3425.9,3425.8,0.29241]
[1735546273890,1.12082916,3425.9,3425.8,0.29241]
[1735546274200,1.55956135,3425.9,3425.8,0.29241]
[1735546276397,1.12082916,3425.9,3425.8,0.29241]
[1735546276993,1.12061773,3425.9,3425.8,0.29241]
[1735546278495,1.10364944,3425.9,3425.8,0.29241]
[1735546280201,0.6649,3425.9,3425.8,0.29241]
[1735546280906,0.6649,3425.9,3425.5,2.33105719]
[1735546281097,0.45555179,3425.8,3425.7,0.29241]
[1735546281297,0.6649,3425.9,3425.7,0.29241]
[1735546281797,0.6649,3425.9,3425.5,2.33105719]
[1735546281998,0.6649,3425.9,3425.8,0.29241]
[1735546282800,5.66225919,3425.9,3425.8,0.29241]
[1735546283495,5.66225919,3425.9,3425.7,0.29241]
[1735546283690,5.66225919,3425.9,3425.8,0.29241]
[1735546283896,1.10367496,3425.9,3425.8,0.29241]
[1735546284497,1.10367496,3425.9,3425.5,2.33105719]
[1735546284498,1.10367496,3425.9,3425.7,0.29241]
[1735546284699,1.10367496,3425.9,3425.6,0.29242]
[1735546284900,1.10367496,3425.9,3425.5,2.33105719]
[1735546285101,0.45570898,3425.6,3425.5,2.62348719]
[1735546286598,1.15290898,3425.7,3425.5,2.33105719]
[1735546286796,1.15290898,3425.7,3425.6,0.29242]
[1735546288803,1.59167707,3425.7,3425.6,0.29242]
[1735546289403,0.89462041,3425.7,3425.6,0.29242]
[1735546289604,0.43876809,3425.7,3425.6,0.29242]
[1735546291408,0.4558482,3426.1,3425.5,2.33105719]
[1735546291609,0.4558482,3426.1,3426.0,0.29239]
[1735546292105,3.2078,3426.1,3425.4,7.78402293]
[1735546292404,0.45588631,3425.8,3425.7,0.29241]
[1735546292609,0.29239,3426.0,3425.7,0.29241]
[1735546292810,0.6852,3425.9,3425.7,0.29241]
[1735546293002,0.6438,3425.8,3425.4,7.78402293]
[1735546293210,0.29243,3425.5,3425.4,3.51852293]
[1735546293713,0.29243,3425.5,3425.1,0.29246]
[1735546294019,0.29244,3425.4,3425.2,0.29246]
[1735546294311,0.6852,3425.3,3425.2,0.29246]
[1735546294910,5.71741551,3425.3,3425.2,0.29246]
[1735546297811,1.12390996,3425.3,3425.2,0.29246]
[1735546310126,5.71741551,3425.3,3425.2,0.29246]
[1735546310816,5.71741551,3425.3,3424.8,3.2078]
[1735546311014,5.71741551,3425.3,3425.2,0.29246]
[1735546311225,5.71741551,3425.3,3424.8,3.2078]
[1735546311425,5.71741551,3425.3,3425.2,0.29246]
[1735546312723,1.12390996,3425.3,3425.2,0.29246]
[1735546313026,1.41635996,3425.3,3425.1,0.29246]
[1735546313226,1.12390996,3425.3,3425.1,0.29246]
[1735546313428,1.12390996,3425.3,3424.8,3.2078]
[1735546313622,1.12390996,3425.3,3425.2,0.29246]
[1735546314022,0.6852,3425.3,3425.2,0.29246]
[1735546315419,5.71803034,3425.3,3425.2,0.29246]
[1735546316929,5.03283034,3425.3,3425.2,0.29246]
[1735546317324,5.03283034,3425.3,3425.2,3.50026]
[1735546317524,5.03283034,3425.3,3425.2,4.18576]
[1735546317937,3.445235,3425.4,3425.3,0.29245]
[1735546318324,3.445235,3425.4,3425.3,2.62350719]
[1735546319020,3.445235,3425.7,3425.6,0.29242]
[1735546319232,3.445235,3425.7,3425.6,1.45942]
[1735546320734,3.737655,3425.7,3425.6,1.167]
[1735546321634,0.73112996,3425.7,3425.6,1.167]
[1735546322635,0.29242,3425.7,3425.6,1.167]
[1735546322932,6.00102054,3425.8,3425.6,1.45942]
[1735546323836,5.77839581,3425.7,3425.6,1.45942]
[1735546326232,5.70861054,3425.8,3425.7,0.29242]
[1735546327435,11.48700635,3425.8,3425.7,0.29242]
[1735546330136,0.29243,3425.6,3425.4,0.29244]
[1735546330341,0.706,3425.5,3425.4,0.29244]
[1735546330635,1.4442,3425.5,3425.4,0.29244]
[1735546332032,6.48047251,3425.5,3425.4,0.29244]
[1735546332238,6.77291251,3425.5,3425.3,0.29245]
[1735546332438,0.29244,3425.4,3425.2,0.29246]
[1735546332739,0.6983,3425.3,3425.2,0.29246]
[1735546333035,0.6983,3425.3,3425.1,1.166]
[1735546333237,0.29247,3425.2,3424.9,3.50028]
[1735546333538,0.29247,3425.1,3424.8,0.29249]
[1735546333744,0.29247,3425.1,3424.9,0.29248]
[1735546333935,0.6829,3425.0,3424.8,0.29249]
[1735546334244,0.98449,3424.9,3424.6,8.04615352]
[1735546334439,0.692,3424.9,3424.6,6.88015352]
[1735546334634,0.2925,3424.7,3424.6,6.88015352]
[1735546334842,0.2925,3424.7,3424.4,0.29253]
[1735546335141,0.7229,3424.6,3424.4,0.29253]
[1735546335541,0.6765,3424.5,3424.4,0.29253]